[Event "*** SCC Grand Prix: Titled Tuesday Blitz"]
[Site "Chess.com"]
[Date "2020.06.23"]
[Round "6"]
[White "econpower"]
[Black "Karacsonyi_Gellert"]
[Result "0-1"]
[WhiteElo "2725"]
[BlackElo "2515"]
[TimeControl "180+1"]
[EndTime "11:06:43 PDT"]
[Termination "Karacsonyi_Gellert won by resignation"]

1. c4 {[%clk 0:03:00.9]} 1... Nf6 {[%clk 0:02:59.4]} 2. g3 {[%clk 0:03:01.3]}
2... e6 {[%clk 0:02:59.3]} 3. Bg2 {[%clk 0:03:01.9]} 3... d5 {[%clk 0:02:59.8]}
4. Nf3 {[%clk 0:03:02.5]} 4... dxc4 {[%clk 0:02:58.6]} 5. Na3 {[%clk 0:03:02.5]}
5... Bxa3 {[%clk 0:02:57.8]} 6. bxa3 {[%clk 0:03:03.4]} 6... O-O {[%clk
0:02:58.3]} 7. Qc2 {[%clk 0:03:04]} 7... a6 {[%clk 0:02:57.6]} 8. Qxc4 {[%clk
0:02:56.9]} 8... b5 {[%clk 0:02:57.5]} 9. Qc2 {[%clk 0:02:57.4]} 9... Bb7 {[%clk
0:02:57.6]} 10. d3 {[%clk 0:02:58]} 10... Nbd7 {[%clk 0:02:57.7]} 11. a4 {[%clk
0:02:57.1]} 11... c5 {[%clk 0:02:52.7]} 12. O-O {[%clk 0:02:55.9]} 12... Qe7
{[%clk 0:02:48.1]} 13. axb5 {[%clk 0:02:45.2]} 13... axb5 {[%clk 0:02:47.6]} 14.
a4 {[%clk 0:02:46.1]} 14... Nd5 {[%clk 0:02:42.8]} 15. Bb2 {[%clk 0:02:40.3]}
15... bxa4 {[%clk 0:02:37.1]} 16. Rxa4 {[%clk 0:02:40.1]} 16... N7f6 {[%clk
0:02:23.8]} 17. Rfa1 {[%clk 0:02:29.2]} 17... Rxa4 {[%clk 0:02:13.4]} 18. Rxa4
{[%clk 0:02:28.2]} 18... Nb4 {[%clk 0:02:04.4]} 19. Qc3 {[%clk 0:02:26.5]} 19...
Ra8 {[%clk 0:01:56.2]} 20. Rxa8+ {[%clk 0:02:24.2]} 20... Bxa8 {[%clk
0:01:57.1]} 21. Qa3 {[%clk 0:02:12.6]} 21... Bb7 {[%clk 0:01:31.3]} 22. Qa7
{[%clk 0:02:09.9]} 22... h6 {[%clk 0:01:28.8]} 23. Bxf6 {[%clk 0:01:47.5]} 23...
gxf6 {[%clk 0:01:29.7]} 24. Nd2 {[%clk 0:01:47.6]} 24... Nd5 {[%clk 0:01:23.3]}
25. Ne4 {[%clk 0:01:47.1]} 25... Bc6 {[%clk 0:00:45.7]} 26. Qxe7 {[%clk
0:01:27]} 26... Nxe7 {[%clk 0:00:46.6]} 27. Nxf6+ {[%clk 0:01:27.7]} 27... Kg7
{[%clk 0:00:45.3]} 28. Bxc6 {[%clk 0:01:28.2]} 28... Kxf6 {[%clk 0:00:41.2]} 29.
Be8 {[%clk 0:01:28]} 29... Nf5 {[%clk 0:00:39.5]} 30. Bb5 {[%clk 0:01:20.9]}
30... Nd4 {[%clk 0:00:35.7]} 31. Bc4 {[%clk 0:01:17.2]} 31... Nxe2+ {[%clk
0:00:34.8]} 32. Kg2 {[%clk 0:01:17.8]} 32... Ke5 {[%clk 0:00:32.7]} 33. f4+
{[%clk 0:01:17.1]} 33... Kd4 {[%clk 0:00:31.2]} 34. f5 {[%clk 0:00:35.2]} 34...
exf5 {[%clk 0:00:25.3]} 35. Bxf7 {[%clk 0:00:36.1]} 35... Kxd3 {[%clk
0:00:23.9]} 36. Bg6 {[%clk 0:00:36.7]} 36... Nd4 {[%clk 0:00:24.2]} 37. g4
{[%clk 0:00:36.9]} 37... Ke4 {[%clk 0:00:21.5]} 38. Kh3 {[%clk 0:00:12.4]} 38...
c4 {[%clk 0:00:20.7]} 39. gxf5 {[%clk 0:00:12.7]} 39... Ke5 {[%clk 0:00:13.7]}
40. f6 {[%clk 0:00:08.3]} 40... Kxf6 {[%clk 0:00:13.7]} 41. Be4 {[%clk
0:00:08.7]} 41... c3 {[%clk 0:00:13.6]} 42. Kg4 {[%clk 0:00:09.6]} 42... c2
{[%clk 0:00:14.1]} 43. Bxc2 {[%clk 0:00:09.9]} 43... Nxc2 {[%clk 0:00:15]} 44.
Kh5 {[%clk 0:00:10.8]} 44... Kg7 {[%clk 0:00:15.8]} 45. h4 {[%clk 0:00:11.4]}
45... Nd4 {[%clk 0:00:16.2]} 46. Kg4 {[%clk 0:00:12.3]} 46... Kg6 {[%clk
0:00:15.4]} 47. Kf4 {[%clk 0:00:12.1]} 47... Kh5 {[%clk 0:00:14.6]} 48. Ke4
{[%clk 0:00:11.9]} 48... Nb3 {[%clk 0:00:13.3]} 49. Kf4 {[%clk 0:00:12.8]} 49...
Kxh4 {[%clk 0:00:13.6]} 0-1

[Event "*** SCC Grand Prix: Titled Tuesday Blitz"]
[Site "Chess.com"]
[Date "2020.06.23"]
[Round "6"]
[White "CarlssonLudvig"]
[Black "LuisFSiles"]
[Result "0-1"]
[WhiteElo "2436"]
[BlackElo "2324"]
[TimeControl "180+1"]
[EndTime "11:06:44 PDT"]
[Termination "LuisFSiles won by checkmate"]

1. Nf3 {[%clk 0:03:00.9]} 1... Nf6 {[%clk 0:02:56.9]} 2. g3 {[%clk 0:03:01]}
2... g6 {[%clk 0:02:57]} 3. b3 {[%clk 0:02:59.4]} 3... Bg7 {[%clk 0:02:56.5]} 4.
Bb2 {[%clk 0:02:59.9]} 4... O-O {[%clk 0:02:56.8]} 5. Bg2 {[%clk 0:02:58.2]}
5... c5 {[%clk 0:02:55.6]} 6. c4 {[%clk 0:02:57.5]} 6... Nc6 {[%clk 0:02:55.1]}
7. O-O {[%clk 0:02:56.3]} 7... d6 {[%clk 0:02:54.7]} 8. Nc3 {[%clk 0:02:54.9]}
8... a6 {[%clk 0:02:53.4]} 9. Rc1 {[%clk 0:02:52.1]} 9... Rb8 {[%clk 0:02:50]}
10. d4 {[%clk 0:02:52]} 10... cxd4 {[%clk 0:02:43]} 11. Nxd4 {[%clk 0:02:50.2]}
11... Nxd4 {[%clk 0:02:36.1]} 12. Qxd4 {[%clk 0:02:50.2]} 12... b5 {[%clk
0:02:33.3]} 13. cxb5 {[%clk 0:02:46.3]} 13... axb5 {[%clk 0:02:32.2]} 14. b4
{[%clk 0:02:46.4]} 14... Be6 {[%clk 0:02:25.5]} 15. Rfd1 {[%clk 0:02:33.3]}
15... Nd5 {[%clk 0:02:17.6]} 16. Qh4 {[%clk 0:01:27.5]} 16... Nxc3 {[%clk
0:02:04.9]} 17. Bxc3 {[%clk 0:01:24.6]} 17... Bxa2 {[%clk 0:01:56.2]} 18. Bxg7
{[%clk 0:01:20]} 18... Kxg7 {[%clk 0:01:57.1]} 19. Qd4+ {[%clk 0:01:17.7]} 19...
Kg8 {[%clk 0:01:43.7]} 20. Rc6 {[%clk 0:01:06.6]} 20... Qd7 {[%clk 0:01:20.5]}
21. Rdc1 {[%clk 0:00:43.1]} 21... Bc4 {[%clk 0:01:14.8]} 22. Bd5 {[%clk
0:00:23.7]} 22... e6 {[%clk 0:01:00.6]} 23. Bf3 {[%clk 0:00:11.4]} 23... d5
{[%clk 0:00:54.9]} 24. Rc5 {[%clk 0:00:11.6]} 24... Qd6 {[%clk 0:00:48]} 25. e4
{[%clk 0:00:11.1]} 25... e5 {[%clk 0:00:45.2]} 26. Qd2 {[%clk 0:00:06]} 26... d4
{[%clk 0:00:45.3]} 27. h4 {[%clk 0:00:04.4]} 27... Rfc8 {[%clk 0:00:40]} 28.
Rxc8+ {[%clk 0:00:02.9]} 28... Rxc8 {[%clk 0:00:40.9]} 29. Rc2 {[%clk 0:00:02]}
29... d3 {[%clk 0:00:37.5]} 30. Rc1 {[%clk 0:00:02.1]} 30... Be6 {[%clk
0:00:35.2]} 31. Rxc8+ {[%clk 0:00:01.9]} 31... Bxc8 {[%clk 0:00:35.1]} 32. Be2
{[%clk 0:00:02.8]} 32... Bb7 {[%clk 0:00:30.1]} 33. Qxd3 {[%clk 0:00:02.8]}
33... Qxb4 {[%clk 0:00:28.7]} 34. Qd8+ {[%clk 0:00:02.9]} 34... Kg7 {[%clk
0:00:27.9]} 35. f3 {[%clk 0:00:03.8]} 35... Qc5+ {[%clk 0:00:26.2]} 36. Kg2
{[%clk 0:00:02.6]} 36... b4 {[%clk 0:00:25.7]} 37. h5 {[%clk 0:00:03.1]} 37...
h6 {[%clk 0:00:20.6]} 38. hxg6 {[%clk 0:00:02.8]} 38... Kxg6 {[%clk 0:00:21.5]}
39. Qd7 {[%clk 0:00:02.8]} 39... Bc6 {[%clk 0:00:19.7]} 40. Qf5+ {[%clk
0:00:02.9]} 40... Kg7 {[%clk 0:00:19.7]} 41. f4 {[%clk 0:00:02.9]} 41... Qc2
{[%clk 0:00:18.6]} 42. Qxe5+ {[%clk 0:00:02.7]} 42... f6 {[%clk 0:00:16]} 43.
Qe7+ {[%clk 0:00:02.7]} 43... Kg8 {[%clk 0:00:16.2]} 44. Kf2 {[%clk 0:00:01.8]}
44... Qxe4 {[%clk 0:00:14.7]} 45. Qxf6 {[%clk 0:00:01.5]} 45... Qg2+ {[%clk
0:00:13.8]} 46. Ke3 {[%clk 0:00:01.8]} 46... Qxg3+ {[%clk 0:00:13.5]} 47. Kd4
{[%clk 0:00:02.2]} 47... Qc3# {[%clk 0:00:13.3]} 0-1

[Event "*** SCC Grand Prix: Titled Tuesday Blitz"]
[Site "Chess.com"]
[Date "2020.06.23"]
[Round "6"]
[White "NotFischer"]
[Black "Stormeman100100"]
[Result "0-1"]
[WhiteElo "2193"]
[BlackElo "2465"]
[TimeControl "180+1"]
[EndTime "11:06:44 PDT"]
[Termination "Stormeman100100 won on time"]

1. Nf3 {[%clk 0:03:00.9]} 1... Nf6 {[%clk 0:02:59.1]} 2. g3 {[%clk 0:03:00.9]}
2... d5 {[%clk 0:02:56.5]} 3. Bg2 {[%clk 0:03:00.8]} 3... e6 {[%clk 0:02:57.4]}
4. d4 {[%clk 0:03:00.5]} 4... Be7 {[%clk 0:02:58.3]} 5. O-O {[%clk 0:03:00.7]}
5... O-O {[%clk 0:02:58.8]} 6. c4 {[%clk 0:03:00.6]} 6... dxc4 {[%clk
0:02:59.7]} 7. Nbd2 {[%clk 0:02:57.3]} 7... c5 {[%clk 0:02:58.1]} 8. Nxc4 {[%clk
0:02:56.1]} 8... Nc6 {[%clk 0:02:55.1]} 9. dxc5 {[%clk 0:02:46]} 9... Bxc5
{[%clk 0:02:56]} 10. Qxd8 {[%clk 0:02:44.6]} 10... Rxd8 {[%clk 0:02:54.7]} 11.
Bg5 {[%clk 0:02:44.8]} 11... Bd7 {[%clk 0:02:51.1]} 12. Nfe5 {[%clk 0:02:36.3]}
12... Be8 {[%clk 0:02:50.3]} 13. Nxc6 {[%clk 0:02:23.6]} 13... Bxc6 {[%clk
0:02:49.3]} 14. Bxc6 {[%clk 0:02:22.4]} 14... bxc6 {[%clk 0:02:50.2]} 15. Bxf6
{[%clk 0:02:05]} 15... gxf6 {[%clk 0:02:51.1]} 16. Rfd1 {[%clk 0:02:02.8]} 16...
Kf8 {[%clk 0:02:48.6]} 17. e3 {[%clk 0:01:57.8]} 17... Ke7 {[%clk 0:02:47.3]}
18. Kf1 {[%clk 0:01:56.4]} 18... Rd5 {[%clk 0:02:47]} 19. e4 {[%clk 0:01:48.4]}
19... Rd4 {[%clk 0:02:42]} 20. Rxd4 {[%clk 0:01:47.8]} 20... Bxd4 {[%clk
0:02:42.9]} 21. Rd1 {[%clk 0:01:46.3]} 21... c5 {[%clk 0:02:43]} 22. b3 {[%clk
0:01:46.5]} 22... a5 {[%clk 0:02:36.8]} 23. a4 {[%clk 0:01:40.4]} 23... Ra6
{[%clk 0:02:34.4]} 24. f4 {[%clk 0:01:35.2]} 24... Ra7 {[%clk 0:02:32.6]} 25.
Ke2 {[%clk 0:01:32.2]} 25... Bc3 {[%clk 0:02:32.4]} 26. h3 {[%clk 0:01:26.9]}
26... Rb7 {[%clk 0:02:30.4]} 27. Rb1 {[%clk 0:01:21.5]} 27... f5 {[%clk
0:02:28.3]} 28. exf5 {[%clk 0:01:15.9]} 28... exf5 {[%clk 0:02:29.2]} 29. Kd3
{[%clk 0:01:10.4]} 29... Bb4 {[%clk 0:02:29.4]} 30. Kc2 {[%clk 0:01:09.7]} 30...
Kf6 {[%clk 0:02:26.7]} 31. Rd1 {[%clk 0:01:04]} 31... Rb8 {[%clk 0:02:24.9]} 32.
Rd6+ {[%clk 0:01:01.2]} 32... Ke7 {[%clk 0:02:24.7]} 33. Rd3 {[%clk 0:00:51]}
33... Ke6 {[%clk 0:02:21.8]} 34. Ne3 {[%clk 0:00:47.6]} 34... Rg8 {[%clk
0:02:19.3]} 35. g4 {[%clk 0:00:47]} 35... fxg4 {[%clk 0:02:17.1]} 36. hxg4
{[%clk 0:00:47.9]} 36... c4 {[%clk 0:02:07]} 37. bxc4 {[%clk 0:00:46.2]} 37...
Bc5 {[%clk 0:02:07]} 38. f5+ {[%clk 0:00:41.4]} 38... Kf6 {[%clk 0:02:05.5]} 39.
Nd5+ {[%clk 0:00:39.8]} 39... Kg5 {[%clk 0:02:05.6]} 40. Rd2 {[%clk 0:00:35.8]}
40... Re8 {[%clk 0:01:51.2]} 41. Kd3 {[%clk 0:00:29.9]} 41... Rb8 {[%clk
0:01:48.7]} 42. Rh2 {[%clk 0:00:27.2]} 42... h6 {[%clk 0:01:41.8]} 43. Ke4
{[%clk 0:00:25.5]} 43... Rb1 {[%clk 0:01:26.9]} 44. Rh5+ {[%clk 0:00:18.1]}
44... Kxg4 {[%clk 0:01:26.7]} 45. Nf6+ {[%clk 0:00:16.5]} 45... Kg3 {[%clk
0:01:26.2]} 46. Rxh6 {[%clk 0:00:16.8]} 46... Rd1 {[%clk 0:01:16.1]} 47. Rh7
{[%clk 0:00:15.5]} 47... Rd4+ {[%clk 0:01:15.7]} 48. Ke5 {[%clk 0:00:15.8]}
48... Rxc4 {[%clk 0:01:03.4]} 49. Ne4+ {[%clk 0:00:15.6]} 49... Kg2 {[%clk
0:00:59.2]} 50. Nxc5 {[%clk 0:00:14.9]} 50... Rxc5+ {[%clk 0:00:58.9]} 51. Kf6
{[%clk 0:00:15.8]} 51... Rc4 {[%clk 0:00:59.1]} 52. Rxf7 {[%clk 0:00:14.8]}
52... Rxa4 {[%clk 0:00:58.7]} 53. Rg7+ {[%clk 0:00:13.3]} 53... Kf3 {[%clk
0:00:58]} 54. Ke7 {[%clk 0:00:12.6]} 54... Re4+ {[%clk 0:00:57.4]} 55. Kf7
{[%clk 0:00:10.6]} 55... a4 {[%clk 0:00:56.9]} 56. f6 {[%clk 0:00:10.8]} 56...
a3 {[%clk 0:00:56.7]} 57. Kg8 {[%clk 0:00:09.6]} 57... Re8+ {[%clk 0:00:53.2]}
58. Kf7 {[%clk 0:00:08.4]} 58... Ra8 {[%clk 0:00:50.7]} 59. Ke7 {[%clk
0:00:06.6]} 59... Kf2 {[%clk 0:00:47.2]} 60. Rh7 {[%clk 0:00:05.9]} 60... Ra7+
{[%clk 0:00:44.4]} 61. Ke6 {[%clk 0:00:04.8]} 61... Rxh7 {[%clk 0:00:45.3]} 0-1

[Event "*** SCC Grand Prix: Titled Tuesday Blitz"]
[Site "Chess.com"]
[Date "2020.06.23"]
[Round "6"]
[White "pavlitas17"]
[Black "Alopekos"]
[Result "1-0"]
[WhiteElo "2336"]
[BlackElo "2441"]
[TimeControl "180+1"]
[EndTime "11:06:47 PDT"]
[Termination "pavlitas17 won by resignation"]

1. d4 {[%clk 0:03:00.9]} 1... Nf6 {[%clk 0:02:59.1]} 2. c4 {[%clk 0:03:00.2]}
2... g6 {[%clk 0:02:58.8]} 3. Nc3 {[%clk 0:03:00]} 3... Bg7 {[%clk 0:02:58.1]}
4. e4 {[%clk 0:02:59.4]} 4... d6 {[%clk 0:02:58.1]} 5. Nf3 {[%clk 0:02:59.6]}
5... O-O {[%clk 0:02:57.8]} 6. Be2 {[%clk 0:03:00]} 6... Nbd7 {[%clk 0:02:55.6]}
7. O-O {[%clk 0:02:58.3]} 7... c5 {[%clk 0:02:55.3]} 8. Be3 {[%clk 0:02:56.4]}
8... cxd4 {[%clk 0:02:54.6]} 9. Nxd4 {[%clk 0:02:56]} 9... Nc5 {[%clk
0:02:51.7]} 10. f3 {[%clk 0:02:51.3]} 10... a5 {[%clk 0:02:22.9]} 11. Re1 {[%clk
0:02:48.9]} 11... b6 {[%clk 0:01:57.5]} 12. Bf1 {[%clk 0:02:47.4]} 12... Bb7
{[%clk 0:01:55.2]} 13. b3 {[%clk 0:02:45.7]} 13... Ne6 {[%clk 0:01:52.4]} 14.
Rc1 {[%clk 0:02:42.4]} 14... Nxd4 {[%clk 0:01:47.5]} 15. Bxd4 {[%clk 0:02:41.2]}
15... Bh6 {[%clk 0:01:45.4]} 16. Rc2 {[%clk 0:02:39.3]} 16... Bg7 {[%clk
0:01:43.3]} 17. Nd5 {[%clk 0:02:38.1]} 17... Nxd5 {[%clk 0:01:41.1]} 18. exd5
{[%clk 0:02:37.2]} 18... Bxd4+ {[%clk 0:01:39]} 19. Qxd4 {[%clk 0:02:36.8]}
19... Re8 {[%clk 0:01:38.3]} 20. Bd3 {[%clk 0:02:34.6]} 20... e5 {[%clk
0:01:36]} 21. dxe6 {[%clk 0:02:33.9]} 21... Rxe6 {[%clk 0:01:32.8]} 22. Rxe6
{[%clk 0:02:32.8]} 22... fxe6 {[%clk 0:01:33.7]} 23. Re2 {[%clk 0:02:31.6]}
23... e5 {[%clk 0:01:30.5]} 24. Qg4 {[%clk 0:02:30.9]} 24... Qc8 {[%clk
0:01:27.3]} 25. Qxc8+ {[%clk 0:02:29]} 25... Rxc8 {[%clk 0:01:28.2]} 26. Be4
{[%clk 0:02:26.7]} 26... Bxe4 {[%clk 0:01:25.7]} 27. fxe4 {[%clk 0:02:26.7]}
27... Kf7 {[%clk 0:01:23.9]} 28. Kf2 {[%clk 0:02:25.1]} 28... Ke6 {[%clk
0:01:17.7]} 29. Ke3 {[%clk 0:02:24.9]} 29... a4 {[%clk 0:01:14.4]} 30. Rc2
{[%clk 0:02:20.5]} 30... axb3 {[%clk 0:01:12.2]} 31. axb3 {[%clk 0:02:20.4]}
31... Ra8 {[%clk 0:01:11.2]} 32. Kd3 {[%clk 0:02:20.5]} 32... Ra1 {[%clk
0:01:03.6]} 33. Kc3 {[%clk 0:02:20.2]} 33... Re1 {[%clk 0:00:59.9]} 34. Kd3
{[%clk 0:02:20.1]} 34... Ra1 {[%clk 0:00:56.8]} 35. Re2 {[%clk 0:02:18.2]} 35...
Ra3 {[%clk 0:00:52.7]} 36. Kc3 {[%clk 0:02:18.2]} 36... Ra1 {[%clk 0:00:51.2]}
37. Kb4 {[%clk 0:02:17.8]} 37... Rb1 {[%clk 0:00:47.7]} 38. h3 {[%clk 0:02:14]}
38... h5 {[%clk 0:00:45.6]} 39. g3 {[%clk 0:02:13.6]} 39... g5 {[%clk
0:00:43.7]} 40. Re3 {[%clk 0:02:11.1]} 40... h4 {[%clk 0:00:41.2]} 41. gxh4
{[%clk 0:02:10]} 41... gxh4 {[%clk 0:00:42.1]} 42. Kb5 {[%clk 0:02:10.1]} 42...
Rg1 {[%clk 0:00:37.7]} 43. Re2 {[%clk 0:01:57.2]} 43... Rg3 {[%clk 0:00:35.9]}
44. b4 {[%clk 0:01:57.1]} 44... Rxh3 {[%clk 0:00:34.4]} 45. Kxb6 {[%clk
0:01:57.3]} 45... Rh1 {[%clk 0:00:32.5]} 46. b5 {[%clk 0:01:56.6]} 46... h3
{[%clk 0:00:30.7]} 47. Kc7 {[%clk 0:01:53.4]} 47... Rc1 {[%clk 0:00:28.1]} 48.
b6 {[%clk 0:01:51.2]} 48... Rxc4+ {[%clk 0:00:25.8]} 49. Kd8 {[%clk 0:01:51.1]}
49... Rb4 {[%clk 0:00:24]} 50. Kc7 {[%clk 0:01:51]} 50... Rc4+ {[%clk
0:00:21.5]} 51. Kb8 {[%clk 0:01:50]} 51... Kd7 {[%clk 0:00:19.4]} 52. Rh2 {[%clk
0:01:47.4]} 52... Kc6 {[%clk 0:00:16.8]} 53. b7 {[%clk 0:01:46.1]} 53... Rb4
{[%clk 0:00:15.2]} 54. Rc2+ {[%clk 0:01:44.2]} 54... Kd7 {[%clk 0:00:13]} 55.
Ka7 {[%clk 0:01:41.1]} 55... Ra4+ {[%clk 0:00:10.3]} 56. Kb6 {[%clk 0:01:40.7]}
56... Rb4+ {[%clk 0:00:07.2]} 57. Ka6 {[%clk 0:01:40.8]} 57... Ra4+ {[%clk
0:00:07.2]} 58. Kb5 {[%clk 0:01:39.5]} 58... Ra1 {[%clk 0:00:05.2]} 59. Kb6
{[%clk 0:01:31.3]} 59... Rb1+ {[%clk 0:00:04.4]} 60. Ka7 {[%clk 0:01:30.9]}
60... Ra1+ {[%clk 0:00:04.9]} 61. Kb8 {[%clk 0:01:31]} 61... Ra5 {[%clk
0:00:05.2]} 62. Rh2 {[%clk 0:01:27.8]} 62... Ra4 {[%clk 0:00:04.7]} 63. Rxh3
{[%clk 0:01:27.1]} 63... Kc6 {[%clk 0:00:04.9]} 64. Rc3+ {[%clk 0:01:26.3]}
64... Kd7 {[%clk 0:00:05.2]} 65. Rc7+ {[%clk 0:01:26.3]} 65... Kd8 {[%clk
0:00:04.6]} 66. Rc8+ {[%clk 0:01:24.7]} 66... Kd7 {[%clk 0:00:05.2]} 67. Rh8
{[%clk 0:01:25]} 67... Rb4 {[%clk 0:00:04.8]} 68. Rh7+ {[%clk 0:01:24.9]} 68...
Kc6 {[%clk 0:00:05]} 69. Kc8 {[%clk 0:01:23.7]} 69... Rxb7 {[%clk 0:00:04.1]}
70. Rxb7 {[%clk 0:01:22.3]} 70... Kc5 {[%clk 0:00:04.6]} 71. Kd7 {[%clk
0:01:21.7]} 71... Kd4 {[%clk 0:00:05.2]} 72. Rb4+ {[%clk 0:01:20.7]} 72... Ke3
{[%clk 0:00:04.1]} 73. Kxd6 {[%clk 0:01:19.8]} 73... Kf4 {[%clk 0:00:04.4]} 74.
Kd5 {[%clk 0:01:19.8]} 1-0

[Event "*** SCC Grand Prix: Titled Tuesday Blitz"]
[Site "Chess.com"]
[Date "2020.06.23"]
[Round "6"]
[White "Harry_Rakkel"]
[Black "CyberneticLion"]
[Result "0-1"]
[WhiteElo "2556"]
[BlackElo "2463"]
[TimeControl "180+1"]
[EndTime "11:06:52 PDT"]
[Termination "CyberneticLion won by resignation"]

1. e4 {[%clk 0:03:00.9]} 1... e5 {[%clk 0:02:59.8]} 2. Nf3 {[%clk 0:03:00.1]}
2... Nc6 {[%clk 0:03:00.3]} 3. Bc4 {[%clk 0:03:00]} 3... Bc5 {[%clk 0:02:59.8]}
4. c3 {[%clk 0:02:59.4]} 4... Nf6 {[%clk 0:02:59.9]} 5. b4 {[%clk 0:02:57.3]}
5... Bd6 {[%clk 0:02:49.8]} 6. d3 {[%clk 0:02:55.8]} 6... O-O {[%clk 0:02:44.3]}
7. O-O {[%clk 0:02:53.2]} 7... a6 {[%clk 0:02:42.1]} 8. Re1 {[%clk 0:02:51.8]}
8... h6 {[%clk 0:02:39.5]} 9. Nbd2 {[%clk 0:02:50.4]} 9... Be7 {[%clk
0:02:35.4]} 10. Nf1 {[%clk 0:02:41.3]} 10... d6 {[%clk 0:02:31.2]} 11. Ng3
{[%clk 0:02:40.4]} 11... Be6 {[%clk 0:02:29.9]} 12. Bxe6 {[%clk 0:02:30.3]}
12... fxe6 {[%clk 0:02:30.8]} 13. d4 {[%clk 0:02:29.1]} 13... exd4 {[%clk
0:02:28.1]} 14. cxd4 {[%clk 0:02:29]} 14... d5 {[%clk 0:02:26.2]} 15. exd5
{[%clk 0:02:22.3]} 15... exd5 {[%clk 0:02:22.8]} 16. a3 {[%clk 0:02:11.7]} 16...
Bd6 {[%clk 0:02:14.2]} 17. Ne5 {[%clk 0:01:57.8]} 17... Bxe5 {[%clk 0:02:05.7]}
18. dxe5 {[%clk 0:01:57.2]} 18... Ne4 {[%clk 0:02:06.3]} 19. Nxe4 {[%clk
0:01:54.9]} 19... dxe4 {[%clk 0:02:06]} 20. Bb2 {[%clk 0:01:51.2]} 20... Qxd1
{[%clk 0:01:50.6]} 21. Raxd1 {[%clk 0:01:50.2]} 21... Rad8 {[%clk 0:01:51.5]}
22. g3 {[%clk 0:01:39.4]} 22... Rxd1 {[%clk 0:01:23.2]} 23. Rxd1 {[%clk
0:01:38.7]} 23... Re8 {[%clk 0:01:23.9]} 24. Rd5 {[%clk 0:01:24.6]} 24... Kf7
{[%clk 0:01:23.3]} 25. Kf1 {[%clk 0:01:21.1]} 25... Ke6 {[%clk 0:01:23.1]} 26.
Rc5 {[%clk 0:01:21.1]} 26... Rd8 {[%clk 0:01:13.7]} 27. Ke2 {[%clk 0:01:20.9]}
27... Rd3 {[%clk 0:01:14.1]} 28. Rc4 {[%clk 0:01:20.8]} 28... Rb3 {[%clk
0:01:13.3]} 29. Bc1 {[%clk 0:01:17.5]} 29... Kd5 {[%clk 0:01:08.8]} 30. Rc5+
{[%clk 0:01:13.7]} 30... Ke6 {[%clk 0:01:06.9]} 31. Rc4 {[%clk 0:01:12.8]} 31...
Kxe5 {[%clk 0:00:44.4]} 32. Bf4+ {[%clk 0:01:07.9]} 32... Kd5 {[%clk 0:00:44.8]}
33. Rc5+ {[%clk 0:01:06.8]} 33... Ke6 {[%clk 0:00:44.8]} 34. Bxc7 {[%clk
0:01:02.7]} 34... Rxa3 {[%clk 0:00:41.8]} 35. Rc4 {[%clk 0:00:57.5]} 35... Kd5
{[%clk 0:00:40]} 36. Rc5+ {[%clk 0:00:57.1]} 36... Ke6 {[%clk 0:00:34.6]} 37.
Rc4 {[%clk 0:00:57.2]} 37... Ra4 {[%clk 0:00:27.1]} 38. Rxe4+ {[%clk 0:00:54]}
38... Kd7 {[%clk 0:00:23.9]} 39. Bf4 {[%clk 0:00:49.7]} 39... Rxb4 {[%clk
0:00:23.9]} 40. Re3 {[%clk 0:00:50.2]} 40... a5 {[%clk 0:00:23.1]} 41. Rd3+
{[%clk 0:00:47.6]} 41... Rd4 {[%clk 0:00:23.3]} 42. Rb3 {[%clk 0:00:47.3]} 42...
Nb4 {[%clk 0:00:21.7]} 43. Bd2 {[%clk 0:00:45.1]} 43... b5 {[%clk 0:00:17.6]}
44. Ke3 {[%clk 0:00:40.3]} 44... Rc4 {[%clk 0:00:17.1]} 45. Bxb4 {[%clk
0:00:37.4]} 45... axb4 {[%clk 0:00:12.9]} 46. Rb2 {[%clk 0:00:29.7]} 46... Kd6
{[%clk 0:00:12.7]} 47. h4 {[%clk 0:00:29.6]} 47... Kc5 {[%clk 0:00:12.8]} 48. h5
{[%clk 0:00:28]} 48... Rc3+ {[%clk 0:00:12.9]} 49. Kd2 {[%clk 0:00:23]} 49...
Kc4 {[%clk 0:00:13.2]} 50. Rb1 {[%clk 0:00:23.2]} 50... b3 {[%clk 0:00:13.4]}
51. g4 {[%clk 0:00:23.1]} 51... Rc2+ {[%clk 0:00:13.7]} 52. Ke3 {[%clk
0:00:22.5]} 52... b2 {[%clk 0:00:13.8]} 53. f4 {[%clk 0:00:20.6]} 53... Kc3
{[%clk 0:00:14.1]} 54. Rd1 {[%clk 0:00:19.5]} 54... Rc1 {[%clk 0:00:14.4]} 55.
Rd3+ {[%clk 0:00:20.2]} 55... Kc4 {[%clk 0:00:14.4]} 56. Rd4+ {[%clk 0:00:20.5]}
56... Kc5 {[%clk 0:00:14.2]} 0-1